[Event "Titled Tuesday Blitz November 15 Late 2022"]
[White "Tristan, Leonardo"]
[Black "Silva Lucena, Cristian"]
[WhiteFideId "113816"]
[BlackFideId "2232588"]
[WhiteElo "2461"]
[BlackElo "2223"]
[Result "1-0"]
[Round "04"]
[TimeControl "180+1"]
[Date "2022.11.16"]
[WhiteClock "0:00:11"]
[BlackClock "0:00:02"]

1. d4 {[%clk 0:03:00]}  Nf6 {[%clk 0:02:59]} 2. Nf3 {[%clk 0:03:01]}  g6 {[%clk 0:03:00]} 3. Bf4 {[%clk 0:03:01]}  Bg7 {[%clk 0:03:00]} 4. e3 {[%clk 0:03:02]}  O-O {[%clk 0:03:01]} 5. Be2 {[%clk 0:03:02]}  d6 {[%clk 0:03:02]} 6. h3 {[%clk 0:03:03]}  c5 {[%clk 0:03:02]} 7. O-O {[%clk 0:03:02]}  Be6 {[%clk 0:03:02]} 8. c3 {[%clk 0:02:58]}  Qb6 {[%clk 0:03:02]} 9. dxc5 {[%clk 0:02:45]}  Qxc5 {[%clk 0:02:58]} 10. Nbd2 {[%clk 0:02:44]}  Nc6 {[%clk 0:02:57]} 11. e4 {[%clk 0:02:44]}  Qb6 {[%clk 0:02:50]} 12. Qc2 {[%clk 0:02:30]}  Rfc8 {[%clk 0:02:49]} 13. Ng5 {[%clk 0:02:28]}  Nd4 {[%clk 0:02:41]} 14. Qd1 {[%clk 0:02:29]}  Nxe2+ {[%clk 0:02:40]} 15. Qxe2 {[%clk 0:02:30]}  Qxb2 {[%clk 0:02:34]} 16. Nxe6 {[%clk 0:02:30]}  fxe6 {[%clk 0:02:34]} 17. Rab1 {[%clk 0:02:30]}  Qxc3 {[%clk 0:02:32]} 18. Rxb7 {[%clk 0:02:30]}  Rc7 {[%clk 0:02:28]} 19. Rfb1 {[%clk 0:02:28]}  Rac8 {[%clk 0:02:19]} 20. Kh2 {[%clk 0:02:20]}  Nh5 {[%clk 0:02:16]} 21. Be3 {[%clk 0:02:17]}  Qa5 {[%clk 0:01:55]} 22. Qg4 {[%clk 0:02:04]}  Kf7 {[%clk 0:01:48]} 23. Nf3 {[%clk 0:01:46]}  Bf6 {[%clk 0:01:12]} 24. R7b5 {[%clk 0:01:18]}  Qxa2 {[%clk 0:01:05]} 25. Rxh5 {[%clk 0:01:18]}  gxh5 {[%clk 0:00:51]} 26. Qxh5+ {[%clk 0:01:19]}  Kg8 {[%clk 0:00:49]} 27. Rb5 {[%clk 0:01:17]}  e5 {[%clk 0:00:45]} 28. Rd5 {[%clk 0:00:29]}  Qa4 {[%clk 0:00:36]} 29. Qg4+ {[%clk 0:00:20]}  Kh8 {[%clk 0:00:34]} 30. Qf5 {[%clk 0:00:20]}  Qd7 {[%clk 0:00:30]} 31. Qh5 {[%clk 0:00:18]}  Qe8 {[%clk 0:00:29]} 32. Qg4 {[%clk 0:00:16]}  Qg6 {[%clk 0:00:27]} 33. Qe6 {[%clk 0:00:16]}  Qxe4 {[%clk 0:00:21]} 34. Rxd6 {[%clk 0:00:14]}  exd6 {[%clk 0:00:16]} 35. Qxf6+ {[%clk 0:00:14]}  Kg8 {[%clk 0:00:15]} 36. Qe6+ {[%clk 0:00:15]}  Kh8 {[%clk 0:00:10]} 37. Bg5 {[%clk 0:00:15]}  Rf8 {[%clk 0:00:06]} 38. Bf6+ {[%clk 0:00:15]}  Rxf6 {[%clk 0:00:06]} 39. Qxf6+ {[%clk 0:00:15]}  Kg8 {[%clk 0:00:06]} 40. Qd8+ {[%clk 0:00:15]}  Kg7 {[%clk 0:00:03]} 41. Qxc7+ {[%clk 0:00:15]}  Kg8 {[%clk 0:00:03]} 42. Qb8+ {[%clk 0:00:11]}  Kg7 {[%clk 0:00:02]} 43. Qxa7+ {[%clk 0:00:11]}  Kg8 {[%clk 0:00:02]} 44. Qe3 {[%clk 0:00:11]} 1-0


[Site "https://www.chess.com"]

[Event "Titled Tuesday Blitz November 15 Late 2022"]
[White "Vujic, Mihailo"]
[Black "Danielyan, Vahe"]
[WhiteFideId "918873"]
[BlackFideId "13304828"]
[WhiteElo "2256"]
[BlackElo "2423"]
[Result "0-1"]
[Round "04"]
[TimeControl "180+1"]
[Date "2022.11.16"]
[WhiteClock "0:00:08"]
[BlackClock "0:02:18"]

1. e4 {[%clk 0:02:59]}  c5 {[%clk 0:02:59]} 2. c3 {[%clk 0:02:58]}  b6 {[%clk 0:02:58]} 3. d4 {[%clk 0:02:57]}  Bb7 {[%clk 0:02:57]} 4. Bd3 {[%clk 0:02:55]}  cxd4 {[%clk 0:02:57]} 5. cxd4 {[%clk 0:02:54]}  Nf6 {[%clk 0:02:56]} 6. Qe2 {[%clk 0:02:52]}  e6 {[%clk 0:02:55]} 7. Nc3 {[%clk 0:02:50]}  Nc6 {[%clk 0:02:55]} 8. Nf3 {[%clk 0:02:49]}  Bb4 {[%clk 0:02:55]} 9. e5 {[%clk 0:02:48]}  Nd5 {[%clk 0:02:54]} 10. Bd2 {[%clk 0:02:47]}  Nce7 {[%clk 0:02:50]} 11. O-O {[%clk 0:02:44]}  h6 {[%clk 0:02:47]} 12. Rfe1 {[%clk 0:02:42]}  Rc8 {[%clk 0:02:46]} 13. Rac1 {[%clk 0:02:41]}  O-O {[%clk 0:02:42]} 14. a3 {[%clk 0:02:21]}  Bxc3 {[%clk 0:02:40]} 15. bxc3 {[%clk 0:02:20]}  Ng6 {[%clk 0:02:41]} 16. g3 {[%clk 0:02:14]}  d6 {[%clk 0:02:39]} 17. c4 {[%clk 0:02:02]}  Nde7 {[%clk 0:02:38]} 18. exd6 {[%clk 0:01:54]}  Qxd6 {[%clk 0:02:37]} 19. Bxg6 {[%clk 0:01:53]}  Nxg6 {[%clk 0:02:37]} 20. Bb4 {[%clk 0:01:37]}  Qc6 {[%clk 0:02:34]} 21. Bxf8 {[%clk 0:01:34]}  Kxf8 {[%clk 0:02:28]} 22. d5 {[%clk 0:01:32]}  exd5 {[%clk 0:02:29]} 23. Nd4 {[%clk 0:01:17]}  Qf6 {[%clk 0:02:28]} 24. cxd5 {[%clk 0:01:11]}  Rd8 {[%clk 0:02:28]} 25. Nc6 {[%clk 0:01:07]}  Ra8 {[%clk 0:02:28]} 26. Qd2 {[%clk 0:00:56]}  Kg8 {[%clk 0:02:22]} 27. Qc3 {[%clk 0:00:43]}  Qd6 {[%clk 0:02:21]} 28. Rcd1 {[%clk 0:00:37]}  Rc8 {[%clk 0:02:19]} 29. Qb4 {[%clk 0:00:36]}  Rxc6 {[%clk 0:02:19]} 30. Qxd6 {[%clk 0:00:12]}  Rxd6 {[%clk 0:02:18]} 31. Re8+ {[%clk 0:00:11]}  Kh7 {[%clk 0:02:18]} 32. Rb8 {[%clk 0:00:09]}  Bxd5 {[%clk 0:02:18]} 33. a4 {[%clk 0:00:08]}  Ne5 {[%clk 0:02:18]} 0-1


[Site "https://www.chess.com"]

[Event "Titled Tuesday Blitz November 15 Late 2022"]
[White "Yanchenko, Roman"]
[Black "Svane, Rasmus"]
[WhiteFideId "4137329"]
[BlackFideId "4657101"]
[WhiteElo "2489"]
[BlackElo "2674"]
[Result "1/2-1/2"]
[Round "04"]
[TimeControl "180+1"]
[Date "2022.11.15"]
[WhiteClock "0:00:22"]
[BlackClock "0:00:04"]

1. d4 {[%clk 0:03:00]}  Nf6 {[%clk 0:02:59]} 2. c4 {[%clk 0:03:01]}  e6 {[%clk 0:03:00]} 3. Nf3 {[%clk 0:03:01]}  d5 {[%clk 0:03:00]} 4. Nc3 {[%clk 0:03:01]}  a6 {[%clk 0:03:00]} 5. Bg5 {[%clk 0:03:00]}  dxc4 {[%clk 0:03:00]} 6. a4 {[%clk 0:03:01]}  Nc6 {[%clk 0:03:00]} 7. e3 {[%clk 0:03:01]}  Na5 {[%clk 0:03:01]} 8. Ne5 {[%clk 0:03:01]}  c5 {[%clk 0:03:01]} 9. Nxc4 {[%clk 0:03:01]}  cxd4 {[%clk 0:03:02]} 10. exd4 {[%clk 0:02:49]}  Be7 {[%clk 0:03:02]} 11. Ne5 {[%clk 0:02:40]}  O-O {[%clk 0:03:01]} 12. Be2 {[%clk 0:02:39]}  Nc6 {[%clk 0:03:02]} 13. Nxc6 {[%clk 0:02:39]}  bxc6 {[%clk 0:03:03]} 14. O-O {[%clk 0:02:38]}  Ra7 {[%clk 0:02:59]} 15. Bf3 {[%clk 0:02:33]}  Qb6 {[%clk 0:02:44]} 16. Qd2 {[%clk 0:02:11]}  Rd7 {[%clk 0:02:43]} 17. Be3 {[%clk 0:02:11]}  Nd5 {[%clk 0:02:36]} 18. Bxd5 {[%clk 0:02:07]}  cxd5 {[%clk 0:02:35]} 19. a5 {[%clk 0:02:07]}  Qb3 {[%clk 0:02:21]} 20. Na4 {[%clk 0:02:02]}  Rb7 {[%clk 0:02:14]} 21. Qc3 {[%clk 0:01:58]}  Bd7 {[%clk 0:02:11]} 22. Nb6 {[%clk 0:01:57]}  Qxc3 {[%clk 0:02:08]} 23. bxc3 {[%clk 0:01:58]}  Bb5 {[%clk 0:02:08]} 24. Rfb1 {[%clk 0:01:58]}  Rc7 {[%clk 0:01:47]} 25. Rb3 {[%clk 0:01:57]}  Rc6 {[%clk 0:01:44]} 26. Bf4 {[%clk 0:01:45]}  Re8 {[%clk 0:01:33]} 27. h3 {[%clk 0:01:34]}  f6 {[%clk 0:01:33]} 28. Be3 {[%clk 0:01:17]}  Kf7 {[%clk 0:01:30]} 29. g4 {[%clk 0:01:03]}  Bd6 {[%clk 0:01:30]} 30. Nd7 {[%clk 0:00:55]}  Rd8 {[%clk 0:01:26]} 31. Nc5 {[%clk 0:00:54]}  Be7 {[%clk 0:01:11]} 32. f4 {[%clk 0:00:53]}  e5 {[%clk 0:00:53]} 33. fxe5 {[%clk 0:00:48]}  fxe5 {[%clk 0:00:54]} 34. Rb2 {[%clk 0:00:48]}  Ke8 {[%clk 0:00:48]} 35. Re1 {[%clk 0:00:44]}  Kf7 {[%clk 0:00:26]} 36. Rf2+ {[%clk 0:00:43]}  Kg8 {[%clk 0:00:27]} 37. Rf5 {[%clk 0:00:43]}  Bxc5 {[%clk 0:00:11]} 38. dxc5 {[%clk 0:00:43]}  d4 {[%clk 0:00:12]} 39. cxd4 {[%clk 0:00:44]}  exd4 {[%clk 0:00:12]} 40. Bxd4 {[%clk 0:00:44]}  h5 {[%clk 0:00:05]} 41. Bf2 {[%clk 0:00:26]}  hxg4 {[%clk 0:00:05]} 42. hxg4 {[%clk 0:00:27]}  Rg6 {[%clk 0:00:05]} 43. Rf4 {[%clk 0:00:24]}  Rd2 {[%clk 0:00:05]} 44. Kg2 {[%clk 0:00:21]}  Bc6+ {[%clk 0:00:05]} 45. Kg3 {[%clk 0:00:19]}  Ra2 {[%clk 0:00:04]} 46. Rd4 {[%clk 0:00:16]}  Rxa5 {[%clk 0:00:04]} 47. Rd6 {[%clk 0:00:17]}  Ra3+ {[%clk 0:00:04]} 48. Re3 {[%clk 0:00:17]}  Rxe3+ {[%clk 0:00:03]} 49. Bxe3 {[%clk 0:00:17]}  Rxd6 {[%clk 0:00:04]} 50. cxd6 {[%clk 0:00:18]}  a5 {[%clk 0:00:04]} 51. Bc5 {[%clk 0:00:18]}  a4 {[%clk 0:00:04]} 52. Kf4 {[%clk 0:00:19]}  Kf7 {[%clk 0:00:05]} 53. Ke5 {[%clk 0:00:19]}  Bd7 {[%clk 0:00:05]} 54. g5 {[%clk 0:00:19]}  Kg6 {[%clk 0:00:06]} 55. Kf4 {[%clk 0:00:19]}  Kh5 {[%clk 0:00:05]} 56. Ba3 {[%clk 0:00:19]}  Kg6 {[%clk 0:00:05]} 57. Bb4 {[%clk 0:00:20]}  Bc6 {[%clk 0:00:05]} 58. Ba3 {[%clk 0:00:20]}  Kf7 {[%clk 0:00:06]} 59. Kf5 {[%clk 0:00:20]}  Bd7+ {[%clk 0:00:05]} 60. Ke5 {[%clk 0:00:20]}  Ke8 {[%clk 0:00:05]} 61. Bb2 {[%clk 0:00:20]}  Kf7 {[%clk 0:00:05]} 62. Ba3 {[%clk 0:00:20]}  Kg6 {[%clk 0:00:05]} 63. Kf4 {[%clk 0:00:21]}  Kh5 {[%clk 0:00:06]} 64. Bb2 {[%clk 0:00:20]}  Kg6 {[%clk 0:00:03]} 65. Ba3 {[%clk 0:00:20]}  Kf7 {[%clk 0:00:03]} 66. Bb2 {[%clk 0:00:20]}  Ke6 {[%clk 0:00:03]} 67. Bxg7 {[%clk 0:00:20]}  Kxd6 {[%clk 0:00:02]} 68. g6 {[%clk 0:00:20]}  Be6 {[%clk 0:00:03]} 69. Kg5 {[%clk 0:00:21]}  Kd5 {[%clk 0:00:02]} 70. Bf6 {[%clk 0:00:21]}  a3 {[%clk 0:00:02]} 71. g7 {[%clk 0:00:21]}  Kd6 {[%clk 0:00:02]} 72. Kg6 {[%clk 0:00:21]}  Kd7 {[%clk 0:00:02]} 73. Kh7 {[%clk 0:00:22]}  a2 {[%clk 0:00:03]} 74. g8=Q {[%clk 0:00:21]}  Bxg8+ {[%clk 0:00:04]} 75. Kxg8 {[%clk 0:00:22]}  a1=Q {[%clk 0:00:04]} 76. Bxa1 {[%clk 0:00:22]} 1/2-1/2


[Site "https://www.chess.com"]

[Event "Titled Tuesday Blitz November 15 Late 2022"]
[White "Yoo, Christopher Woojin"]
[Black "Annaberdiyev, Babageldi"]
[WhiteFideId "30909694"]
[BlackFideId "14000385"]
[WhiteElo "2463"]
[BlackElo "2332"]
[Result "1-0"]
[Round "04"]
[TimeControl "180+1"]
[Date "2022.11.16"]
[WhiteClock "0:01:39"]
[BlackClock "0:00:07"]

1. g3 {[%clk 0:03:00]}  c5 {[%clk 0:02:59]} 2. Bg2 {[%clk 0:02:59]}  Nc6 {[%clk 0:02:58]} 3. d3 {[%clk 0:02:59]}  g6 {[%clk 0:02:59]} 4. Nd2 {[%clk 0:02:59]}  Bg7 {[%clk 0:02:59]} 5. e3 {[%clk 0:03:00]}  d6 {[%clk 0:02:59]} 6. Ne2 {[%clk 0:03:01]}  e5 {[%clk 0:02:59]} 7. c4 {[%clk 0:03:00]}  Nge7 {[%clk 0:03:00]} 8. h3 {[%clk 0:03:00]}  h5 {[%clk 0:02:59]} 9. Nc3 {[%clk 0:02:55]}  O-O {[%clk 0:02:56]} 10. O-O {[%clk 0:02:53]}  a5 {[%clk 0:02:54]} 11. b3 {[%clk 0:02:53]}  e4 {[%clk 0:02:44]} 12. Bb2 {[%clk 0:02:49]}  exd3 {[%clk 0:02:44]} 13. Nde4 {[%clk 0:02:45]}  Bf5 {[%clk 0:02:01]} 14. Qxd3 {[%clk 0:02:43]}  d5 {[%clk 0:02:00]} 15. cxd5 {[%clk 0:02:41]}  Nb4 {[%clk 0:02:00]} 16. Qd2 {[%clk 0:02:37]}  Nbxd5 {[%clk 0:01:57]} 17. Nxd5 {[%clk 0:02:37]}  Nxd5 {[%clk 0:01:45]} 18. Bxg7 {[%clk 0:02:36]}  Kxg7 {[%clk 0:01:43]} 19. Nxc5 {[%clk 0:02:37]}  Nf6 {[%clk 0:01:38]} 20. Qb2 {[%clk 0:02:30]}  Qe7 {[%clk 0:01:35]} 21. Rac1 {[%clk 0:02:27]}  b6 {[%clk 0:01:31]} 22. Na4 {[%clk 0:02:17]}  Rab8 {[%clk 0:01:31]} 23. Rc6 {[%clk 0:02:17]}  Bd7 {[%clk 0:01:18]} 24. Rxb6 {[%clk 0:02:16]}  Bxa4 {[%clk 0:01:17]} 25. bxa4 {[%clk 0:02:17]}  Rxb6 {[%clk 0:01:14]} 26. Qxb6 {[%clk 0:02:17]}  Qa3 {[%clk 0:01:12]} 27. Qxa5 {[%clk 0:02:15]}  Qxa2 {[%clk 0:01:09]} 28. Qb5 {[%clk 0:02:13]}  Rc8 {[%clk 0:01:03]} 29. a5 {[%clk 0:02:13]}  Rc2 {[%clk 0:01:03]} 30. a6 {[%clk 0:02:12]}  Rb2 {[%clk 0:01:03]} 31. Qc6 {[%clk 0:02:12]}  Qa5 {[%clk 0:00:51]} 32. Qc4 {[%clk 0:02:12]}  Ra2 {[%clk 0:00:49]} 33. Bb7 {[%clk 0:02:10]}  Ra4 {[%clk 0:00:44]} 34. Qd3 {[%clk 0:02:06]}  h4 {[%clk 0:00:36]} 35. g4 {[%clk 0:02:05]}  Nh7 {[%clk 0:00:35]} 36. f4 {[%clk 0:02:02]}  g5 {[%clk 0:00:26]} 37. Qd6 {[%clk 0:01:48]}  Qc3 {[%clk 0:00:21]} 38. Qe5+ {[%clk 0:01:47]}  Qxe5 {[%clk 0:00:20]} 39. fxe5 {[%clk 0:01:48]}  Ra5 {[%clk 0:00:19]} 40. Rf5 {[%clk 0:01:45]}  Kg6 {[%clk 0:00:11]} 41. Be4 {[%clk 0:01:43]}  Kg7 {[%clk 0:00:10]} 42. e6 {[%clk 0:01:40]}  Ra1+ {[%clk 0:00:08]} 43. Rf1 {[%clk 0:01:41]}  Rxa6 {[%clk 0:00:06]} 44. Rxf7+ {[%clk 0:01:39]}  Kg8 {[%clk 0:00:07]} 45. Bxh7+ {[%clk 0:01:39]} 1-0


[Site "https://www.chess.com"]

[Event "Titled Tuesday Blitz November 15 Late 2022"]
[White "Zhou, Qiyu"]
[Black "Antonio, Jorge Carlos"]
[WhiteFideId "505161"]
[BlackFideId "113190"]
[WhiteElo "2101"]
[BlackElo "2247"]
[Result "0-1"]
[Round "04"]
[TimeControl "180+1"]
[Date "2022.11.16"]
[WhiteClock "0:00:08"]
[BlackClock "0:01:03"]

1. e4 {[%clk 0:03:00]}  c5 {[%clk 0:02:58]} 2. Nf3 {[%clk 0:02:57]}  e6 {[%clk 0:02:59]} 3. d4 {[%clk 0:02:58]}  cxd4 {[%clk 0:02:58]} 4. Nxd4 {[%clk 0:02:59]}  Nc6 {[%clk 0:02:55]} 5. Nc3 {[%clk 0:02:57]}  a6 {[%clk 0:02:45]} 6. Be3 {[%clk 0:02:48]}  Qc7 {[%clk 0:02:36]} 7. Be2 {[%clk 0:02:34]}  Bb4 {[%clk 0:02:36]} 8. Qd3 {[%clk 0:02:32]}  Ne5 {[%clk 0:02:31]} 9. Qd2 {[%clk 0:02:31]}  Nf6 {[%clk 0:02:26]} 10. f3 {[%clk 0:02:31]}  d5 {[%clk 0:02:24]} 11. a3 {[%clk 0:02:16]}  Bxc3 {[%clk 0:02:20]} 12. Qxc3 {[%clk 0:02:16]}  Qxc3+ {[%clk 0:02:18]} 13. bxc3 {[%clk 0:02:16]}  dxe4 {[%clk 0:02:15]} 14. f4 {[%clk 0:02:16]}  Nd5 {[%clk 0:02:12]} 15. Bd2 {[%clk 0:01:55]}  Ng6 {[%clk 0:02:08]} 16. O-O {[%clk 0:01:52]}  f5 {[%clk 0:02:06]} 17. c4 {[%clk 0:01:50]}  Nf6 {[%clk 0:01:58]} 18. Bb4 {[%clk 0:01:33]}  Kf7 {[%clk 0:01:56]} 19. Rad1 {[%clk 0:01:28]}  Bd7 {[%clk 0:01:52]} 20. c5 {[%clk 0:01:22]}  Ne7 {[%clk 0:01:48]} 21. Bc4 {[%clk 0:01:20]}  Ned5 {[%clk 0:01:46]} 22. Rfe1 {[%clk 0:00:59]}  Bc6 {[%clk 0:01:39]} 23. g3 {[%clk 0:00:40]}  h5 {[%clk 0:01:35]} 24. h4 {[%clk 0:00:34]}  Rhd8 {[%clk 0:01:27]} 25. Nb3 {[%clk 0:00:22]}  Ng4 {[%clk 0:01:15]} 26. Rd4 {[%clk 0:00:15]}  Nde3 {[%clk 0:01:09]} 27. Rc1 {[%clk 0:00:08]}  Rxd4 {[%clk 0:01:03]} 0-1


[Site "https://www.chess.com"]

[Event "Titled Tuesday Blitz November 15 Late 2022"]
[White "Zwirs, Nico"]
[Black "Alexikov, Alexander"]
[WhiteFideId "1036432"]
[BlackFideId "14103958"]
[WhiteElo "2381"]
[BlackElo "2222"]
[Result "1-0"]
[Round "04"]
[TimeControl "180+1"]
[Date "2022.11.16"]
[WhiteClock "0:00:10"]
[BlackClock "0:00:23"]

1. c4 {[%clk 0:03:00]}  Nf6 {[%clk 0:02:59]} 2. Nf3 {[%clk 0:03:00]}  g6 {[%clk 0:02:59]} 3. g3 {[%clk 0:03:00]}  Bg7 {[%clk 0:03:00]} 4. Bg2 {[%clk 0:03:00]}  d6 {[%clk 0:03:00]} 5. O-O {[%clk 0:03:01]}  c6 {[%clk 0:03:00]} 6. Nc3 {[%clk 0:03:01]}  O-O {[%clk 0:03:00]} 7. Rb1 {[%clk 0:03:02]}  a5 {[%clk 0:02:59]} 8. a3 {[%clk 0:03:02]}  Na6 {[%clk 0:02:59]} 9. b4 {[%clk 0:03:02]}  axb4 {[%clk 0:02:58]} 10. axb4 {[%clk 0:03:03]}  Nc7 {[%clk 0:02:56]} 11. b5 {[%clk 0:02:59]}  Bd7 {[%clk 0:02:55]} 12. bxc6 {[%clk 0:02:58]}  bxc6 {[%clk 0:02:54]} 13. d3 {[%clk 0:02:58]}  c5 {[%clk 0:02:45]} 14. Bg5 {[%clk 0:02:49]}  Rb8 {[%clk 0:02:42]} 15. Qd2 {[%clk 0:02:42]}  Na6 {[%clk 0:02:38]} 16. Bh6 {[%clk 0:02:26]}  Nb4 {[%clk 0:02:28]} 17. Bxg7 {[%clk 0:02:26]}  Kxg7 {[%clk 0:02:27]} 18. Rb2 {[%clk 0:02:21]}  e5 {[%clk 0:02:23]} 19. Ng5 {[%clk 0:02:13]}  Qc7 {[%clk 0:02:16]} 20. Rfb1 {[%clk 0:02:11]}  Bc6 {[%clk 0:02:10]} 21. Bxc6 {[%clk 0:02:07]}  Nxc6 {[%clk 0:02:02]} 22. Nb5 {[%clk 0:02:04]}  Qd7 {[%clk 0:02:01]} 23. Kg2 {[%clk 0:01:30]}  h6 {[%clk 0:01:58]} 24. Ne4 {[%clk 0:01:26]}  Ne8 {[%clk 0:01:53]} 25. Nec3 {[%clk 0:01:16]}  Nf6 {[%clk 0:01:37]} 26. Ne4 {[%clk 0:01:09]}  Ne8 {[%clk 0:01:36]} 27. e3 {[%clk 0:01:03]}  f5 {[%clk 0:01:32]} 28. Nec3 {[%clk 0:01:03]}  Nf6 {[%clk 0:01:32]} 29. Qe2 {[%clk 0:01:00]}  h5 {[%clk 0:01:26]} 30. Qf3 {[%clk 0:00:51]}  Rfe8 {[%clk 0:01:15]} 31. Nd5 {[%clk 0:00:49]}  e4 {[%clk 0:01:10]} 32. dxe4 {[%clk 0:00:45]}  Nxe4 {[%clk 0:00:58]} 33. Nbc3 {[%clk 0:00:34]}  Rxb2 {[%clk 0:00:50]} 34. Rxb2 {[%clk 0:00:35]}  Ne5 {[%clk 0:00:46]} 35. Qe2 {[%clk 0:00:22]}  Nxc3 {[%clk 0:00:44]} 36. Nxc3 {[%clk 0:00:23]}  Qc6+ {[%clk 0:00:42]} 37. Nd5 {[%clk 0:00:23]}  Nd7 {[%clk 0:00:40]} 38. Rb3 {[%clk 0:00:16]}  Kf7 {[%clk 0:00:36]} 39. Qb2 {[%clk 0:00:16]}  Kg8 {[%clk 0:00:24]} 40. Rb7 {[%clk 0:00:14]}  Rf8 {[%clk 0:00:21]} 41. Rc7 {[%clk 0:00:10]}  Re8 {[%clk 0:00:22]} 42. Rxc6 {[%clk 0:00:10]}  Rf8 {[%clk 0:00:23]} 43. Rc7 {[%clk 0:00:10]} 1-0


[Site "https://www.chess.com"]

[Event "Titled Tuesday Blitz November 15 Late 2022"]
[White "Adewumi, Tanitoluwa"]
[Black "Rose, Felix"]
[WhiteFideId "30966396"]
[BlackFideId "5105722"]
[WhiteElo "2537"]
[BlackElo "2039"]
[Result "1/2-1/2"]
[Round "05"]
[TimeControl "180+1"]
[Date "2022.11.16"]
[WhiteClock "0:00:03"]
[BlackClock "0:00:27"]

1. e4 {[%clk 0:02:55]}  c5 {[%clk 0:02:59]} 2. Nf3 {[%clk 0:02:55]}  d6 {[%clk 0:03:00]} 3. Bb5+ {[%clk 0:02:55]}  Bd7 {[%clk 0:02:59]} 4. Bxd7+ {[%clk 0:02:55]}  Nxd7 {[%clk 0:03:00]} 5. O-O {[%clk 0:02:55]}  Ngf6 {[%clk 0:03:01]} 6. Qe2 {[%clk 0:02:55]}  e6 {[%clk 0:03:00]} 7. c3 {[%clk 0:02:53]}  Be7 {[%clk 0:03:00]} 8. d4 {[%clk 0:02:54]}  O-O {[%clk 0:02:59]} 9. e5 {[%clk 0:02:54]}  Ne8 {[%clk 0:02:59]} 10. Rd1 {[%clk 0:02:51]}  Rc8 {[%clk 0:02:57]} 11. exd6 {[%clk 0:02:43]}  Bxd6 {[%clk 0:02:54]} 12. dxc5 {[%clk 0:02:41]}  Nxc5 {[%clk 0:02:38]} 13. Bf4 {[%clk 0:02:25]}  Qc7 {[%clk 0:02:38]} 14. Bxd6 {[%clk 0:02:16]}  Nxd6 {[%clk 0:02:39]} 15. Nbd2 {[%clk 0:02:13]}  Na4 {[%clk 0:02:31]} 16. Rab1 {[%clk 0:02:10]}  h6 {[%clk 0:02:20]} 17. Nd4 {[%clk 0:01:50]}  a6 {[%clk 0:02:15]} 18. N2f3 {[%clk 0:01:45]}  Nc4 {[%clk 0:02:00]} 19. h3 {[%clk 0:01:23]}  Ncxb2 {[%clk 0:01:52]} 20. Rxb2 {[%clk 0:01:17]}  Nxc3 {[%clk 0:01:52]} 21. Qd3 {[%clk 0:00:52]}  Nxd1 {[%clk 0:01:50]} 22. Qxd1 {[%clk 0:00:53]}  Qc1 {[%clk 0:01:49]} 23. Qxc1 {[%clk 0:00:52]}  Rxc1+ {[%clk 0:01:49]} 24. Kh2 {[%clk 0:00:53]}  b5 {[%clk 0:01:42]} 25. Ne5 {[%clk 0:00:40]}  Rd8 {[%clk 0:01:36]} 26. Ndc6 {[%clk 0:00:27]}  Rd6 {[%clk 0:01:29]} 27. Nb4 {[%clk 0:00:09]}  a5 {[%clk 0:01:06]} 28. Nbd3 {[%clk 0:00:05]}  Rd1 {[%clk 0:00:57]} 29. Rxb5 {[%clk 0:00:01]}  R1xd3 {[%clk 0:00:56]} 30. Nxd3 {[%clk 0:00:01]}  Rxd3 {[%clk 0:00:57]} 31. Rxa5 {[%clk 0:00:02]}  Rd2 {[%clk 0:00:57]} 32. f3 {[%clk 0:00:02]}  g5 {[%clk 0:00:55]} 33. Ra8+ {[%clk 0:00:03]}  Kg7 {[%clk 0:00:55]} 34. a4 {[%clk 0:00:03]}  Ra2 {[%clk 0:00:56]} 35. Kg3 {[%clk 0:00:04]}  Kf6 {[%clk 0:00:57]} 36. a5 {[%clk 0:00:04]}  Kf5 {[%clk 0:00:57]} 37. a6 {[%clk 0:00:03]}  f6 {[%clk 0:00:57]} 38. a7 {[%clk 0:00:03]}  h5 {[%clk 0:00:57]} 39. h4 {[%clk 0:00:03]}  Ke5 {[%clk 0:00:45]} 40. hxg5 {[%clk 0:00:03]}  fxg5 {[%clk 0:00:45]} 41. Kh3 {[%clk 0:00:03]}  Ra4 {[%clk 0:00:43]} 42. g4 {[%clk 0:00:03]}  hxg4+ {[%clk 0:00:42]} 43. fxg4 {[%clk 0:00:03]}  Ra3+ {[%clk 0:00:42]} 44. Kg2 {[%clk 0:00:04]}  Ke4 {[%clk 0:00:41]} 45. Kf2 {[%clk 0:00:04]}  e5 {[%clk 0:00:40]} 46. Ke2 {[%clk 0:00:05]}  Ra2+ {[%clk 0:00:41]} 47. Kd1 {[%clk 0:00:05]}  Ke3 {[%clk 0:00:41]} 48. Kc1 {[%clk 0:00:06]}  e4 {[%clk 0:00:41]} 49. Kb1 {[%clk 0:00:06]}  Ra6 {[%clk 0:00:40]} 50. Kb2 {[%clk 0:00:07]}  Ke2 {[%clk 0:00:40]} 51. Kc3 {[%clk 0:00:07]}  e3 {[%clk 0:00:40]} 52. Kd4 {[%clk 0:00:07]}  Ra4+ {[%clk 0:00:40]} 53. Ke5 {[%clk 0:00:08]}  Ke1 {[%clk 0:00:40]} 54. Kf5 {[%clk 0:00:06]}  Ra5+ {[%clk 0:00:39]} 55. Kg6 {[%clk 0:00:05]}  e2 {[%clk 0:00:40]} 56. Kh5 {[%clk 0:00:05]}  Kf1 {[%clk 0:00:31]} 57. Rf8+ {[%clk 0:00:04]}  Kg2 {[%clk 0:00:31]} 58. Re8 {[%clk 0:00:03]}  Rxa7 {[%clk 0:00:28]} 59. Rxe2+ {[%clk 0:00:02]}  Kf3 {[%clk 0:00:28]} 60. Re5 {[%clk 0:00:03]}  Rh7+ {[%clk 0:00:27]} 61. Kxg5 {[%clk 0:00:03]}  Rg7+ {[%clk 0:00:28]} 62. Kh5 {[%clk 0:00:03]}  Rxg4 {[%clk 0:00:28]} 63. Rf5+ {[%clk 0:00:04]}  Rf4 {[%clk 0:00:28]} 64. Ra5 {[%clk 0:00:04]}  Re4 {[%clk 0:00:28]} 65. Kg5 {[%clk 0:00:04]}  Rg4+ {[%clk 0:00:27]} 66. Kf5 {[%clk 0:00:04]}  Rf4+ {[%clk 0:00:28]} 67. Ke5 {[%clk 0:00:04]}  Re4+ {[%clk 0:00:28]} 68. Kd5 {[%clk 0:00:04]}  Re3 {[%clk 0:00:28]} 69. Ra4 {[%clk 0:00:04]}  Rd3+ {[%clk 0:00:28]} 70. Ke5 {[%clk 0:00:04]}  Re3+ {[%clk 0:00:28]} 71. Kf5 {[%clk 0:00:05]}  Rd3 {[%clk 0:00:28]} 72. Ra2 {[%clk 0:00:04]}  Rb3 {[%clk 0:00:27]} 73. Ra5 {[%clk 0:00:03]} 1/2-1/2


[Site "https://www.chess.com"]